Cogmind - Beta 15 @@@ ROGUE MODE // 2025.06.16 @ 13:36:59 Player: Fenodyree Result: Destroyed by D-53 Grenadier with Mini Grenade Launcher Performance ------------- Evolutions (1) 500 Regions Visited (3) 600 Robots Destroyed (20) 100 Value Destroyed (284) 284 Prototype IDs (1) 20 Alien Tech Used (0) 0 Bonus (0) 0 TOTAL SCORE: 1504 Bonus ------- None Cogmind --------- Core Integrity 0/400 Matter 300/300 Energy 100/100 System Corruption 0% Temperature Cool (0) Movement Core (350) Ox6 Location -9/Mines Parts ------- > --- POWER (1) -------- (None) > --- PROPULSION (2) --- (None) > --- UTILITY (4) ------ Large Storage Unit > --- WEAPON (2) ------- (None) > --- INVENTORY (15) --- Ion Engine Light Treads Light Treads Flight Unit Scrap Suit Signal Interpreter Improved Terrain Scanner Light Armor Plating Small Laser Light Assault Rifle Mining Laser Peak State ------------ > --- POWER ------------ Light Ion Engine > --- PROPULSION ------- Wheel Wheel > --- UTILITY ---------- Large Storage Unit Improved Terrain Scanner Light Armor Plating Light Armor Plating > --- WEAPON ----------- Small Laser Improved Assault Rifle > --- INVENTORY -------- Ion Engine Light Treads Light Treads Flight Unit Scrap Suit Signal Interpreter Improved Terrain Scanner Light Armor Plating Light Assault Rifle Grenade Launcher Mining Laser [Rating: 15] Favorites ----------- Power Light Ion Engine Engine Light Ion Engine Propulsion Wheel Wheel Wheel Utility Improved Terrain Scanner Device Improved Terrain Scanner Storage Large Storage Unit Protection Light Armor Plating Weapon Small Laser Energy Gun Small Laser Ballistic Gun Improved Assault Rifle Launcher Grenade Launcher Build | -11 -10 -9 -9 ------- Run | Yrd Mat Mat Min Slots Evolved 2 | . . 2 . Power . | . . . . Propulsion . | . . . . Utility 2 | . . 2 . Weapon . | . . . . Parts Attached 13 | 7 1 4 1 Power 2 | 1 . 1 . Engine 2 | 1 . 1 . Core . | . . . . Reactor . | . . . . Propulsion 2 | 2 . . . Treads . | . . . . Leg . | . . . . Wheel 2 | 2 . . . Hover . | . . . . Flight . | . . . . Utility 5 | 2 1 2 . Device 1 | 1 . . . Storage 2 | 1 1 . . Processor . | . . . . Hackware . | . . . . Protection 2 | . . 2 . Artifact . | . . . . Weapon 4 | 2 . 1 1 Energy Gun 2 | 2 . . . Energy Cannon . | . . . . Ballistic Gun 1 | . . 1 . Ballistic Cannon . | . . . . Launcher 1 | . . . 1 Special Weapon . | . . . . Impact Weapon . | . . . . Slashing Weapon . | . . . . Piercing Weapon . | . . . . Special Melee Weapon . | . . . . Unidentified Prototypes 1 | . . 1 . Parts Lost 9 | . . 1 8 Power 2 | . . 1 1 Propulsion 2 | . . . 2 Utility 3 | . . . 3 Weapon 2 | . . . 2 Highest Loss Streak 8 | . . 1 8 To Critical Strikes . | . . . . Average Backups 11 | 4 11 14 12 Power . | . 1 . 1 Propulsion 4 | 3 5 6 4 Utility 3 | . 3 4 4 Weapon 1 | . 1 1 3 Tool/Special . | . . . . Unused Backups 14 | . . 1 13 Power 1 | . . . 1 Propulsion 6 | . . . 6 Utility 5 | . . 1 4 Weapon 1 | . . . 1 Tool/Special 1 | . . . 1 Average Slot Usage (%) 97 | . 100 98 89 Engine 12 | . 14 10 10 Wheel 24 | . 28 22 19 Device 12 | . 14 11 10 Storage 12 | . 14 11 11 Protection 10 | . . 21 17 Energy Gun 20 | . 28 17 9 Ballistic Gun 3 | . . 4 10 Peak Build Rating 15 | 9 10 14 15 Average Rating 10 | 5 9 12 13 On Entrance 8 | . 9 10 14 Naked Turns . | . . . . Heaviest Build 34 | 11 26 34 34 Greatest Support 20 | 20 20 20 20 Greatest Overweight (x) 8 | 3 1 1 8 Average Overweight (x) . | . . 1 1 Largest Inventory Capacity 15 | 8 15 15 15 Average Capacity 13 | 7 14 15 15 Most Carried 15 | 8 14 15 15 Average Carried 11 | 5 11 14 12 Final Capacity 15 | 8 15 15 15 Final Carried 15 | 7 14 15 12 Class Distribution -------------------- 100% | Mutant Dominant Class ---------------- Mutant | -10/Materials Mutant | -9/Materials Mutant | -9/Mines Resources | -11 -10 -9 -9 ----------- Run | Yrd Mat Mat Min Matter Collected 384 | 260 20 67 37 Remotely . | . . . . Salvage Created 494 | 103 29 294 68 Parts 44 | 13 3 20 8 Haulers Intercepted 1 | . . 1 . Recyclers Shooed 1 | 1 . . . Parts Field Recycled . | . . . . Retrieved Matter . | . . . . Parts Self-Destructed . | . . . . Prevented . | . . . . Kills | -11 -10 -9 -9 ------- Run | Yrd Mat Mat Min Combat Hostiles Destroyed 14 | . 2 8 4 Guns 14 | . 2 8 4 Classes Destroyed 5 | 1 1 3 . Tunneler 5 | 5 . . . Hauler 1 | . . 1 . Swarmer 10 | . 2 4 4 Grunt 3 | . . 3 . Sentry 1 | . . 1 . Best Kill Streak 4 | 4 2 4 4 Combat Bots Only 4 | . 2 4 4 Max Kills in Single Turn 2 | 2 2 1 1 Gunslinging . | . . . . Exploded . | . . . . Melee . | . . . . Uniques/NPCs Destroyed . | . . . . Combat | -11 -10 -9 -9 -------- Run | Yrd Mat Mat Min Hostile Shots Fired 90 | . 20 31 39 Missed 24 | . 5 11 8 Hits 66 | . 15 20 31 Projectile 66 | . 15 20 31 AOE 17 | . . . 17 Damage Taken 1197 | . 135 252 810 Core 453 | . 51 26 376 Absorbed by Shields . | . . . . Core Remaining (%) 89 | 100 79 . . Volleys Fired 46 | 11 7 22 6 Largest 2 | 2 2 2 2 Hottest 80 | 80 80 80 63 Shots Fired 90 | 22 14 42 12 Gun 90 | 22 14 42 12 Cannon . | . . . . Launcher . | . . . . Special . | . . . . Kinetic 22 | . . 16 6 Thermal 68 | 22 14 26 6 Explosive . | . . . . Electromagnetic . | . . . . Robot Hit Streak 6 | 6 1 5 4 Robot Miss Streak 6 | 3 6 4 2 Penetration Max . | . . . . Secondary Targets 3 | . . 2 1 Max Gunslinging Chain 1 | . . 1 1 Shots Hit Robots 52 | 14 3 27 8 Core Hits 27 | 6 3 14 4 Critical Kills . | . . . . Critical Parts Destroyed . | . . . . Critical Strikes . | . . . . Melee Attacks . | . . . . Impact . | . . . . Slashing . | . . . . Piercing . | . . . . Sneak Attacks . | . . . . Combat Hostiles . | . . . . Follow-up Attacks . | . . . . Damage Inflicted 701 | 162 47 380 112 Guns 701 | 162 47 380 112 Cannons . | . . . . Explosions . | . . . . Melee . | . . . . Ramming . | . . . . Kinetic 266 | . . 192 74 Thermal 435 | 162 47 188 38 Explosive . | . . . . Electromagnetic . | . . . . Impact . | . . . . Slashing . | . . . . Piercing . | . . . . Highest Corruption 1 | . 1 . . Average Corruption 1 | . 1 . . Corruption Purged . | . . . . Corruption Blocked . | . . . . Effects 2 | . 2 . . Matter Fused 1 | . 1 . . Data Loss (minor) 1 | . 1 . . Overload Shots . | . . . . Overflow Damage . | . . . . Projectiles . | . . . . Explosions . | . . . . Melee . | . . . . Knockbacks . | . . . . Impact . | . . . . Kinetic . | . . . . Secondary . | . . . . Self-Inflicted Damage . | . . . . Shots . | . . . . Rammed . | . . . . Targets Rammed . | . . . . Kicked . | . . . . Crushed . | . . . . Highest Temperature 126 | 72 54 126 36 Average Temperature 32 | 32 24 37 24 Received Heat Transfer 78 | . . 78 . Siege Activations . | . . . . Martial Activations . | . . . . Shielding Activations . | . . . . Robots Disrupted . | . . . . Combat Hostiles . | . . . . Robots Corrupted . | . . . . Combat Hostiles . | . . . . Parts Fried . | . . . . Impact Corruptions . | . . . . Robots Melted . | . . . . Combat Hostiles . | . . . . Parts Melted 1 | . . 1 . Heat Transferred 950 | 375 100 400 75 Parts Sabotaged . | . . . . Parts Stolen . | . . . . Parts Stripped . | . . . . Power Chain Reactions . | . . . . Alert | -11 -10 -9 -9 ------- Run | Yrd Mat Mat Min Maximum Alert Level . | . . . . Low Security (%) 100 | 100 100 100 100 Level 1 . | . . . . Level 2 . | . . . . Level 3 . | . . . . Level 4 . | . . . . Level 5 . | . . . . High Security . | . . . . Max Security . | . . . . Peak Influence 151 | 5 50 151 104 Initial 49 | . . . 49 Average 31 | 1 9 69 48 Influence Increases 414 | 25 60 224 105 Destroy 0b10 Robot/C 280 | . 40 160 80 Destroy 0b10 Robot/NC 30 | 25 . 5 . Destroy Leader 52 | . 10 32 10 Successful Hack 22 | . 10 12 . Lose Combat Pursuer 30 | . . 15 15 Influence Decreases 400 | 25 60 96 219 Entered New Map 79 | . . . 79 Time Decay 231 | 25 60 86 60 Lost Part 90 | . . 10 80 Squads Dispatched 3 | . 1 2 . Investigation 1 | . . 1 . Extermination . | . . . . Reinforcement 2 | . 1 1 . Assault . | . . . . Garrison . | . . . . Intercept . | . . . . Searches Triggered . | . . . . Construction Impeded . | . . . . Haulers Reinforced . | . . . . Active Scanning Responses . | . . . . Cargo Convoy Interrupts . | . . . . Stealth | -11 -10 -9 -9 --------- Run | Yrd Mat Mat Min Distress Signals 3 | . . 3 . Communications Jammed . | . . . . Distress Signals . | . . . . Times Spotted 38 | . 14 15 9 Peak Tracking Total 11 | . 11 6 6 Tactical Retreats 2 | . . 1 1 Traps | -11 -10 -9 -9 ------- Run | Yrd Mat Mat Min Traps Triggered 2 | . 1 1 . Indirectly . | . . . . Trap Hack Attempts . | . . . . Triggered . | . . . . Disarmed . | . . . . Reprogrammed . | . . . . Reused . | . . . . Traps Extracted . | . . . . Installed . | . . . . Triggered . | . . . . Machines | -11 -10 -9 -9 ---------- Run | Yrd Mat Mat Min Machines Disabled . | . . . . Max in Single Turn . | . . . . Machines Repaired . | . . . . Machines Dismantled . | . . . . Machines Sabotaged . | . . . . Overloaded Fab Kills . | . . . . Hacking | -11 -10 -9 -9 --------- Run | Yrd Mat Mat Min Machines Accessed 6 | . 4 2 . Terminals 5 | . 3 2 . Fabricators . | . . . . Repair Stations . | . . . . Recycling Units 1 | . 1 . . Scanalyzers . | . . . . Garrison Access . | . . . . Total Hacks 24 | . 15 9 . Successful 14 | . 9 5 . Failed 10 | . 6 4 . Catastrophic 1 | . . 1 . Database Lockouts . | . . . . Manual 18 | . 9 9 . Terminals 22 | . 13 9 . Fabricators . | . . . . Repair Stations . | . . . . Recycling Units 2 | . 2 . . Scanalyzers . | . . . . Garrison Access . | . . . . Terminal Hacks 9 | . 5 4 . Robot Analysis 7 | . 3 4 . Emergency Access Points 1 | . 1 . . Locate Traps 1 | . 1 . . Fabricator Hacks . | . . . . Repair Station Hacks . | . . . . Recycling Unit Hacks 2 | . 2 . . Report Inventory 1 | . 1 . . Retrieve Components 1 | . 1 . . Scanalyzer . | . . . . Garrison Access Hacks . | . . . . Unauthorized Hacks 3 | . 2 1 . Terminals 3 | . 2 1 . Botnet 3 | . 2 1 . Fabricators . | . . . . Repair Stations . | . . . . Recycling Units . | . . . . Scanalyzers . | . . . . Garrison Access . | . . . . Data Cores Recovered . | . . . . Used . | . . . . Hacking Detections 5 | . 3 2 . Full Trace Events 1 | . . 1 . Feedback Events . | . . . . Feedback Blocked . | . . . . Robot Schematics Acquired . | . . . . Robots Built . | . . . . Authchips . | . . . . Time . | . . . . Total Robot Build Rating . | . . . . Part Schematics Acquired . | . . . . Parts Built . | . . . . Authchips . | . . . . Time . | . . . . Total Part Build Rating . | . . . . Parts Repaired . | . . . . Time . | . . . . Parts Recycled . | . . . . Recycled Matter . | . . . . Retrieved Matter . | . . . . Retrieved Components 2 | . 2 . . Parts Scanalyzed . | . . . . Part Schematics Acquired . | . . . . Parts Damaged . | . . . . Bothacking | -11 -10 -9 -9 ------------ Run | Yrd Mat Mat Min Used RIF Installer . | . . . . Robots Hacked . | . . . . Non-combat . | . . . . Combat . | . . . . Robot Hacks Applied . | . . . . Relay Couplers Released . | . . . . Fabnet Peak Effective % . | . . . . Robots Rewired . | . . . . Allies Hacked . | . . . . Hacks Repelled . | . . . . Allies | -11 -10 -9 -9 -------- Run | Yrd Mat Mat Min Total Allies . | . . . . Largest Group . | . . . . Highest-Rated Group . | . . . . Highest-Rated Ally . | . . . . Total Orders . | . . . . Ally Attacks . | . . . . Total Damage . | . . . . Kills . | . . . . Allies Corrupted . | . . . . Allies Melted . | . . . . Intel | -11 -10 -9 -9 ------- Run | Yrd Mat Mat Min Active Infowar (turns) 663 | . 321 224 118 Terrain 663 | . 321 224 118 Robot Analysis Total 7 | . 3 4 . Derelict Logs Recovered 1 | . . . 1 Drone Launches . | . . . . Drone Recoveries . | . . . . Exploration | -11 -10 -9 -9 ------------- Run | Yrd Mat Mat Min Turns Passed 792 | 120 321 224 127 Spaces Moved 563 | 80 249 135 99 Core 35 | 32 . . 3 Treads . | . . . . Legs . | . . . . Wheels 528 | 48 249 135 96 Hover . | . . . . Flight . | . . . . Fastest Speed 50 | 50 80 95 95 Average Speed 95 | 86 93 95 104 Slowest Speed 450 | 200 95 95 450 Overloaded Moves . | . . . . Propulsion Burnouts . | . . . . Robots Hopped . | . . . . Potential Cave-ins . | . . . . Cave-ins Triggered . | . . . . Exploration Rate (%) 22 | 3 44 22 22 Regions Visited 3 Branch Regions 1 Pre-discovered Areas 1 | . . . 1 Known Exits Taken . | . . . . Unknown Exits Taken 3 | 1 1 1 . Scrap Searched . | . . . . Spaces Dug . | . . . . Terrain Destroyed . | . . . . Melee . | . . . . Projectile . | . . . . AOE . | . . . . Terrain Rammed . | . . . . Walls Destroyed . | . . . . Machines Disabled . | . . . . Actions | -11 -10 -9 -9 --------- Run | Yrd Mat Mat Min Total 727 | 105 321 189 112 Wait 81 | . 59 22 . Move 560 | 79 248 134 99 Hop . | . . . . Pick Up 20 | 8 6 5 1 Fast Attach 7 | 6 . 1 . Attach 4 | 1 . 3 . Detach . | . . . . Swap 2 | . 1 . 1 Drop 7 | . . 2 5 Fire 46 | 11 7 22 6 Melee . | . . . . Ram . | . . . . Kick . | . . . . Crush . | . . . . Escape Stasis . | . . . . Rewire . | . . . . Trap . | . . . . Miscellaneous . | . . . . Route ------- -11/Scrapyard -10/Materials (discovered 2 exits: *Mat x2) -9/Materials -9/Mines History --------- Turn | Location | Event 10 | -11/Scrapyard | Discovered new exit (range 16) 121 | -11/Scrapyard | Entered Materials 220 | -10/Materials | Discovered new exit (range 4) 308 | -10/Materials | Build established: Mutant 393 | -10/Materials | Discovered new exit (range 8) 442 | -10/Materials | Entered another Materials area 442 | -9/Materials | Evolved 2 slots: Utility x2 633 | -9/Materials | Discovered new exit (range 8) 666 | -9/Materials | Entered Mines 673 | -9/Mines | Learned location of Storage (-9) 702 | -9/Mines | Assembled infested the area 703 | -9/Mines | Found a Scrap Suit stashed away for nefarious purposes 707 | -9/Mines | Assisted by a Guerilla fighting off Assembled 707 | -9/Mines | Found Scrap Suit 789 | -9/Mines | Core integrity fell below 50% 793 | -9/Mines | Core integrity fell below 20% 793 | -9/Mines | Destroyed by D-53 Grenadier with Mini Grenade Launcher Last Messages --------------- 00741_ S-10 Pest destroyed. 00744_ Switching to secondary target: S-10 Pest. 00747_ Lgt. Armor Plating destroyed. 00753_ S-10 Pest destroyed. 00760_ Acquired 20 matter. 00761_ Acquired 17 matter. 00775_ Wheel destroyed. 00780_ Lgt. Armor Plating destroyed. 00781_ Wheel destroyed. 00782_ The unstable cave ceiling collapses. 00782_ Imp. Assault Rifle destroyed. 00784_ Imp. Terrain Scanner destroyed. 00784_ Grenade Launcher destroyed. 00786_ The unstable cave ceiling collapses. 00786_ K-01 Serf collects debris. 00786_ Lgt. Ion Engine destroyed. 00787_ The unstable cave ceiling collapses. 00788_ as-59814 destroyed. 00789_ K-01 Serf collects debris. 00789_ as-00772 destroyed. Map ----- +----------------------------------------------------+ | | | | | | | | | | | | | | | | | | | | | | | | | | | ?????????#??????????????????????????????? | | ????????????????????????????????????????? | | ?????????????#??????????????????????????? | | ????????????????????????????????????????? | | ??????#?????????????###?????????????????? | | ?#?????#???????##### ###?????#?????????? | | ????#?????????## #???????????????? | | #????????????## #???????????????? | | ????????????## # #???????????????? | | ????????????# #???????????????? | | ?????????#?## ####????????????? | | ??????????## #????????????? | | ???????##### @ #???????????? | | ??????## [= d ????????? | | ?#???## *%[ d kt r ???????? | | ?????# *=## #### ??????? | | ?????# %### # ##??????????? | | ?????## ==#?# ## ########???????????? | | ??????## #?# ##### #??????????????????? | | ???#???## #?# #???# #??????????????????? | | ????????# ##?# #???#|#?????##???????????? | | ????????# ##?# #???#%!??????????????????? | | ??????### #### #????!= ?????????????????? | | ??????# #???? !%?????????????????? | | ??????# #######???? =?????????????????? | | ??##??# #?????????? ???????????????????? | | #?????# #??????????????????????????????? | | ??????# #???????????? ?????????????????? | | ??#???# #??#######?????????????????????? | | ?????## ### #??????????????????????? | | ???#### ## #??????????????????????? | | ??#?## #???????????????????????? | | ????# ###???????????????????????? | | ???# ##?????????????????????????? | | #??### ##??????????????????????????? | | ????? =% #??????????????????????????? | | ????# ##?#????????????????????????? | +----------------------------------------------------+ Best States ------------- Heat Dissipation 28 Energy Generation 10 Energy Capacity 125 Matter Stores 300 Matter Capacity 300 Sight Range 16 Terrain Scan Range 16 Terrain Scan Density 10 Armor Coverage 300 Evasion (%) 50 Item Schematics ----------------- None Robot Schematics ------------------ None Fabricated ------------ Nothing Repaired ---------- Nothing Alien Tech Used ----------------- None Achievements -------------- None Challenges ------------ None Game ------ Seed CouplerMetafieldSheargun Manual? 0 Play Time 00:11:47 Cumulative 40.7 hours Start 2025.06.16 @ 13:25:20 End 2025.06.16 @ 13:36:59 Sessions 1 Manual Loads 0 Difficulty Rogue Special Mode None Game No. 33 Rogue 21 Adventurer 6 Explorer 6 Win Type - Total 0 Types 0/0/0/0/0/0/0/0/0/0 Lore% 19 Gallery% 41 Achievement% 30 Wizard Run 0 Options --------- Layout 1 ASCII 0 Keyboard 0 Movement Numpad Keybinds 0 Fullscreen 1 Font 24/Smallcaps Map View 50x35 Zoom Use 0% Tactical HUD 1 Map Filters NONE Filters NONE Steam 1 RUN: 55912446-13d4-4960-bfd2-fcdb64edf282